[Event "GER-ch Women 2020"]
[Site "Magdeburg"]
[Date "2020.08.19"]
[Round "5.11"]
[White "Roos, Karin"]
[Black "Hielscher, Ursula"]
[Result "0-1"]
[ECO "C01"]
[WhiteElo "1772"]
[BlackElo "1789"]
[Annotator "NA"]
[PlyCount "102"]
[EventDate "2020.08.16"]
[EventType "swiss"]
[EventCountry "GER"]
[SourceTitle "playchess.com"]
[Source "ChessBase"]
[SourceQuality "1"]
[TimeControl "40/5400+30:1800+30"]

1. e4 {[%emt 0:00:00]} e6 {[%emt 0:00:00]} 2. d4 {[%emt 0:00:09]} d5 {[%emt 0:00:00]} 3. exd5 {[%emt 0:00:14]} exd5 {[%emt 0:00:00]} 4. Bd3 {[%emt 0:03:04]} Nf6 {[%emt 0:00:30]} 5. Nf3 {[%emt 0:03:24]} Bg4 {[%emt 0:01:07]} 6. h3 {[%emt 0:00:03]} Bh5 {[%emt 0:00:11]} 7. Nbd2 {[%emt 0:03:19]} Nc6 {[%emt 0:05:50]} 8. c3 {[%emt 0:00:18]} Bd6 {[%emt 0:00:29]} 9. O-O {[%emt 0:01:31]} Ne7 {[%emt 0:02:59]} 10. Qc2 {[%emt 0:10:22]} Bg6 {[%emt 0:01:42]} 11. Ne5 {[%emt 0:02:43]} Bxd3 {[%emt 0:00:54]} 12. Qxd3 {[%emt 0:00:06]} Qc8 {[%emt 0:03:44]} 13. b3 {[%emt 0:07:25]} c6 {[%emt 0:04:02]} 14. Bb2 {[%emt 0:01:27]} Qf5 {[%emt 0:02:00]} 15. Rae1 {[%emt 0:10:19]} O-O {[%emt 0:01:33]} 16. Re3 {[%emt 0:03:02]} c5 {[%emt 0:10:22]} 17. c4 {[%emt 0:08:25]} Qxd3 {[%emt 0:06:48]} 18. Rxd3 {[%emt 0:01:40]} cxd4 {[%emt 0:01:31]} 19. Bxd4 {[%emt 0:00:42]} Nf5 {[%emt 0:04:43]} 20. Bb2 {[%emt 0:04:13]} Rfe8 {[%emt 0:15:36]} 21. Ng4 {[%emt 0:01:35]} Nxg4 {[%emt 0:09:13]} 22. hxg4 {[%emt 0:00:11]} Ne7 {[%emt 0:04:33]} 23. cxd5 {[%emt 0:00:21]} Rad8 {[%emt 0:01:47]} 24. Nc4 {[%emt 0:00:55]} Bb8 {[%emt 0:01:05]} 25. d6 {[%emt 0:02:20]} Nc6 {[%emt 0:02:30]} 26. Rfd1 {[%emt 0:03:22]} b5 {[%emt 0:00:38]} 27. Ne3 {[%emt 0:00:54]} Rd7 {[%emt 0:08:34]} 28. Nf5 {[%emt 0:06:52]} f6 {[%emt 0:00:51]} 29. Kf1 {[%emt 0:01:32]} Kf7 {[%emt 0:00:42]} 30. a3 {[%emt 0:12:48]} Nd8 {[%emt 0:02:06]} 31. Bc3 {[%emt 0:04:03]} a6 {[%emt 0:00:25]} 32. Ba5 {[%emt 0:00:20]} Nb7 {[%emt 0:00:28]} 33. Bc7 {[%emt 0:01:20]} Nc5 {[%emt 0:02:10]} 34. Rc3 {[%emt 0:01:58]} Ne4 {[%emt 0:00:43]} 35. Rc6 {[%emt 0:00:54]} g6 {[%emt 0:01:22]} 36. Bxb8 {[%emt 0:01:42]} Rxb8 {[%emt 0:00:27]} 37. Rc7 {[%emt 0:01:07]} Rbd8 {[%emt 0:02:03]} 38. Rxd7+ {[%emt 0:02:02]} Rxd7 {[%emt 0:00:01]} 39. f3 {[%emt 0:00:44]} gxf5 {[%emt 0:01:09]} 40. fxe4 {[%emt 0:00:29]} fxg4 {[%emt 0:00:52]} 41. Kf2 {[%emt 0:05:21]} Ke6 {[%emt 0:01:52]} 42. Ke3 {[%emt 0:02:29]} Rxd6 {[%emt 0:03:07]} 43. Rh1 {[%emt 0:00:46]} Rd7 {[%emt 0:00:26]} 44. Rh5 {[%emt 0:00:22]} Rc7 {[%emt 0:05:29]} 45. Kd2 {[%emt 0:02:24]} Rg7 {[%emt 0:00:49]} 46. Ke3 {[%emt 0:02:54]} Kf7 {[%emt 0:01:12]} 47. Rc5 {[%emt 0:02:06]} Kg6 {[%emt 0:00:55]} 48. Kf4 {[%emt 0:00:52]} h5 {[%emt 0:00:48]} 49. g3 {[%emt 0:01:11]} Rd7 {[%emt 0:00:30]} 50. Rc6 {[%emt 0:02:15]} Rd3 {[%emt 0:00:49]} 51. Rxa6 {[%emt 0:00:29]} Rf3# {[%emt 0:00:09]} 0-1

[Event "GER-ch Women 2020"]
[Site "Magdeburg"]
[Date "2020.08.20"]
[Round "6.3"]
[White "Mehling, Katharina"]
[Black "Bashylina, Luisa"]
[Result "1-0"]
[ECO "E92"]
[WhiteElo "1947"]
[BlackElo "1975"]
[Annotator "ChessBase"]
[PlyCount "97"]
[EventDate "2020.08.16"]
[EventType "swiss"]
[EventCountry "GER"]
[SourceTitle "playchess.com"]
[Source "ChessBase"]
[SourceQuality "1"]
[TimeControl "40/5400+30:1800+30"]

1. d4 {[%emt 0:00:00]} Nf6 {[%emt 0:00:00]} 2. c4 {[%emt 0:00:00]} g6 {[%emt 0:00:22]} 3. Nc3 {[%emt 0:00:00]} Bg7 {[%emt 0:00:04]} 4. e4 {[%emt 0:00:01]} d6 {[%emt 0:00:03]} 5. Nf3 {[%emt 0:00:21]} O-O {[%emt 0:00:06]} 6. Be2 {[%emt 0:00:22]} e5 {[%emt 0:01:07]} 7. Be3 {[%emt 0:01:09]} Nc6 {[%emt 0:00:27]} 8. d5 {[%emt 0:00:50]} Ne7 {[%emt 0:00:08]} 9. Nd2 {[%emt 0:01:28]} Ne8 {[%emt 0:02:19]} 10. O-O {[%emt 0:00:54]} f5 {[%emt 0:00:11]} 11. f3 {[%emt 0:00:26]} f4 {[%emt 0:01:44]} 12. Bf2 {[%emt 0:00:21]} g5 {[%emt 0:01:14]} 13. c5 {[%emt 0:04:28]} h5 {[%emt 0:05:33]} 14. Rc1 {[%emt 0:04:44]} Rf6 {[%emt 0:08:01]} 15. Nb5 {[%emt 0:10:39]} a6 {[%emt 0:08:01]} 16. Nc3 {[%emt 0:01:15]} Rg6 {[%emt 0:00:50]} 17. cxd6 {[%emt 0:01:23]} cxd6 {[%emt 0:01:52]} 18. Na4 {[%emt 0:05:22]} g4 {[%emt 0:02:12]} 19. Bb6 {[%emt 0:09:05]} Qd7 {[%emt 0:00:52]} 20. Ba5 {[%emt 0:01:48]} gxf3 {[%emt 0:15:12]} 21. Rxf3 {[%emt 0:08:06]} b5 {[%emt 0:02:02]} 22. Nb6 {[%emt 0:08:25]} Qa7 {[%emt 0:00:13]} 23. Kh1 {[%emt 0:01:22]} Rb8 {[%emt 0:01:19]} 24. Nxc8 {[%emt 0:00:43]} Rxc8 {[%emt 0:04:48]} 25. Rxc8 {[%emt 0:00:58]} Nxc8 {[%emt 0:00:01]} 26. Qg1 {[%emt 0:01:01]} Qd7 {[%emt 0:01:42]} 27. Rc3 {[%emt 0:01:32]} Nf6 {[%emt 0:10:50]} 28. Rc7 {[%emt 0:07:26]} Qe8 {[%emt 0:00:11]} 29. a4 {[%emt 0:02:40]} Bf8 {[%emt 0:09:51]} 30. axb5 {[%emt 0:03:27]} axb5 {[%emt 0:00:27]} 31. Qf1 {[%emt 0:01:43]} Ne7 {[%emt 0:04:29]} 32. Bxb5 {[%emt 0:05:45]} Qa8 {[%emt 0:02:42]} 33. b4 {[%emt 0:01:04]} Ng4 {[%emt 0:00:45]} 34. Qf3 {[%emt 0:00:52]} Qb8 {[%emt 0:05:02]} 35. Bf1 {[%emt 0:01:11]} Ne3 {[%emt 0:01:41]} 36. Nc4 {[%emt 0:03:06]} Nxf1 {[%emt 0:01:24]} 37. Qxf1 {[%emt 0:00:11]} Qb5 {[%emt 0:01:04]} 38. Nd2 {[%emt 0:01:04]} Qa4 {[%emt 0:00:19]} 39. Rc1 {[%emt 0:02:25]} Bh6 {[%emt 0:02:44]} 40. Nf3 {[%emt 0:03:28]} Qa2 {[%emt 0:02:29]} 41. Bd8 {[%emt 0:30:50]} Rg7 {[%emt 0:08:58]} 42. b5 {[%emt 0:00:00]} Nxd5 {[%emt 0:00:52]} 43. exd5 {[%emt 0:00:00]} e4 {[%emt 0:00:08]} 44. b6 {[%emt 0:00:00]} Qxd5 {[%emt 0:10:45]} 45. Qc4 {[%emt 0:00:00]} Qxc4 {[%emt 0:00:06]} 46. Rxc4 {[%emt 0:00:00]} exf3 {[%emt 0:00:07]} 47. gxf3 {[%emt 0:00:00]} Rb7 {[%emt 0:00:41]} 48. Bc7 {[%emt 0:00:00]} Kf7 {[%emt 0:02:36]} 49. Ra4 {[%emt 0:00:00]} 1-0

[Event "GER-ch Women 2020"]
[Site "Magdeburg"]
[Date "2020.08.20"]
[Round "6.9"]
[White "Heutling, Elina"]
[Black "Zimmer, Elke"]
[Result "1-0"]
[ECO "C77"]
[WhiteElo "1833"]
[BlackElo "1952"]
[Annotator "ChessBase"]
[PlyCount "119"]
[EventDate "2020.08.16"]
[EventType "swiss"]
[EventCountry "GER"]
[SourceTitle "playchess.com"]
[Source "ChessBase"]
[SourceQuality "1"]
[TimeControl "40/5400+30:1800+30"]

1. e4 {[%emt 0:00:00]} e5 {[%emt 0:00:00]} 2. Nf3 {[%emt 0:00:00]} Nc6 {[%emt 0:00:00]} 3. Bb5 {[%emt 0:00:00]} a6 {[%emt 0:00:00]} 4. Ba4 {[%emt 0:00:03]} Nf6 {[%emt 0:00:06]} 5. d3 {[%emt 0:00:55]} d6 {[%emt 0:00:20]} 6. c3 {[%emt 0:00:35]} Bd7 {[%emt 0:01:00]} 7. Nbd2 {[%emt 0:01:53]} Be7 {[%emt 0:00:15]} 8. O-O {[%emt 0:00:39]} O-O {[%emt 0:00:11]} 9. Re1 {[%emt 0:02:35]} Qe8 {[%emt 0:01:38]} 10. Bc2 {[%emt 0:02:37]} Bg4 {[%emt 0:00:25]} 11. h3 {[%emt 0:00:45]} Bh5 {[%emt 0:00:05]} 12. Nf1 {[%emt 0:03:04]} Nd7 {[%emt 0:03:20]} 13. g4 {[%emt 0:06:14]} Bg6 {[%emt 0:04:54]} 14. Ng3 {[%emt 0:01:26]} Qd8 {[%emt 0:03:00]} 15. Kh2 {[%emt 0:05:42]} Bh4 {[%emt 0:01:56]} 16. Nxh4 {[%emt 0:01:01]} Qxh4 {[%emt 0:00:06]} 17. Qf3 {[%emt 0:03:27]} Nc5 {[%emt 0:02:58]} 18. Rg1 {[%emt 0:04:22]} Qe7 {[%emt 0:11:03]} 19. Nf5 {[%emt 0:08:47]} Qd7 {[%emt 0:00:05]} 20. h4 {[%emt 0:01:32]} d5 {[%emt 0:12:03]} 21. exd5 {[%emt 0:13:53]} Ne7 {[%emt 0:00:46]} 22. b4 {[%emt 0:08:01]} Nxd3 {[%emt 0:23:58]} 23. Bxd3 {[%emt 0:01:46]} Nxd5 {[%emt 0:00:37]} 24. h5 {[%emt 0:09:08]} Bxf5 {[%emt 0:01:37]} 25. Bxf5 {[%emt 0:00:10]} Qd6 {[%emt 0:00:30]} 26. Be4 {[%emt 0:00:56]} c6 {[%emt 0:00:45]} 27. Rd1 {[%emt 0:01:41]} Qe6 {[%emt 0:06:59]} 28. Bxd5 {[%emt 0:02:52]} cxd5 29. Rxd5 Rfd8 {[%emt 0:01:25]} 30. Rxd8+ {[%emt 0:04:14]} Rxd8 {[%emt 0:00:05]} 31. Qe4 {[%emt 0:03:23]} h6 {[%emt 0:01:02]} 32. Be3 {[%emt 0:00:53]} b5 {[%emt 0:00:23]} 33. a4 {[%emt 0:03:15]} Rc8 {[%emt 0:05:42]} 34. axb5 {[%emt 0:00:45]} axb5 {[%emt 0:01:20]} 35. Bc5 {[%emt 0:00:59]} Qd7 {[%emt 0:03:41]} 36. Ra7 {[%emt 0:03:11]} Rc7 {[%emt 0:01:31]} 37. Ra5 {[%emt 0:01:25]} Rc8 {[%emt 0:00:46]} 38. Qe2 {[%emt 0:02:02]} e4 {[%emt 0:06:08]} 39. Rxb5 {[%emt 0:02:13]} Qd3 {[%emt 0:00:19]} 40. Qxd3 {[%emt 0:01:13]} exd3 {[%emt 0:00:04]} 41. Be3 {[%emt 0:31:14]} Rxc3 {[%emt 0:30:31]} 42. Rd5 {[%emt 0:00:00]} Rb3 {[%emt 0:00:00]} 43. Bd2 {[%emt 0:00:00]} Kf8 {[%emt 0:00:00]} 44. Kg3 {[%emt 0:00:00]} Ke7 {[%emt 0:00:00]} 45. Kf4 {[%emt 0:00:00]} g6 {[%emt 0:00:00]} 46. Ke3 {[%emt 0:00:00]} Ke6 {[%emt 0:00:00]} 47. Rxd3 {[%emt 0:00:00]} Rb1 {[%emt 0:00:00]} 48. Kd4 {[%emt 0:00:00]} gxh5 {[%emt 0:00:00]} 49. gxh5 {[%emt 0:00:00]} Rh1 {[%emt 0:00:00]} 50. Bxh6 {[%emt 0:00:00]} Rxh5 {[%emt 0:00:00]} 51. Re3+ {[%emt 0:00:00]} Kd6 {[%emt 0:00:00]} 52. Bf4+ {[%emt 0:00:00]} Kc6 {[%emt 0:00:00]} 53. Rc3+ {[%emt 0:00:00]} Kb6 {[%emt 0:00:00]} 54. Rc5 {[%emt 0:00:00]} Rh7 {[%emt 0:00:00]} 55. Rc7 {[%emt 0:00:00]} Kb5 {[%emt 0:00:00]} 56. Kc3 {[%emt 0:00:00]} Rh3+ {[%emt 0:00:00]} 57. Be3 {[%emt 0:00:00]} Rf3 {[%emt 0:00:00]} 58. Rc5+ {[%emt 0:00:00]} Ka6 {[%emt 0:00:00]} 59. Kc4 {[%emt 0:00:00]} f5 {[%emt 0:00:00]} 60. Rc7 {[%emt 0:00:00]} 1-0

[Event "GER-ch Women 2020"]
[Site "Magdeburg"]
[Date "2020.08.20"]
[Round "6.10"]
[White "Hielscher, Ursula"]
[Black "Schumann, Rabea"]
[Result "0-1"]
[ECO "A45"]
[WhiteElo "1789"]
[BlackElo "1871"]
[Annotator "NA RC"]
[PlyCount "38"]
[EventDate "2020.08.16"]
[EventType "swiss"]
[EventCountry "GER"]
[SourceTitle "playchess.com"]
[Source "ChessBase"]
[SourceQuality "1"]
[TimeControl "40/5400+30:1800+30"]

{[%evp 8,38,15,32767,-37,-50,-43,-55,-56,-59,-46,-56,-54,-44,-49,-102,-91,32767,32767,32767,-133,-160,-151,-202,32767,32767,-204,-198,-144,-236,-201,-248,-152]} 1. d4 {[%emt 0:00:00]} Nf6 {[%emt 0:00:00]} 2. Bg5 {[%emt 0:00:00]} Ne4 {[%emt 0:00:07]} 3. Bf4 {[%emt 0:00:00]} d5 {[%emt 0:00:37]} 4. f3 {[%emt 0:01:05]} Nf6 {[%emt 0:00:54]} 5. Nd2 {[%emt 0:02:30]} c5 {[%emt 0:06:58]} 6. dxc5 {[%emt 0:03:51] A45: Trompowsky Attack.} Nc6 {[%emt 0:03:32]} 7. Nb3 {[%emt 0:05:39]} e5 {[%emt 0:01:11]} 8. Bg5 {[%emt 0:00:48] [#]} Bxc5 $1 {[%emt 0:08:56]} 9. Nxc5 {[%emt 0:03:46]} Qa5+ {[%emt 0:00:07] Double Attack} 10. Qd2 {[%emt 0:00:34]} Qxc5 {[%emt 0:00:14] [#]} 11. O-O-O $146 {[%emt 0:02:37]} ({Predecessor:} 11. e3 Bf5 12. c3 h6 13. Bh4 O-O-O 14. Ne2 g5 15. Bf2 Qe7 16. Ng3 Bg6 17. Bb5 {1-0 (43) Soto Vega,J (2357)-Vergara Jofre,F (2245) Montevideo 2018}) 11... Be6 {[%emt 0:03:27]} 12. Qc3 {[%emt 0:04:13]} Qxc3 {[%emt 0:05:07]} 13. bxc3 {[%emt 0:00:01]} Rc8 {[%emt 0:00:50]} 14. Kb2 {[%emt 0:04:05]} Nd7 {[%emt 0:06:28]} 15. Be3 {[%emt 0:12:05]} Na5 {[%emt 0:08:33]} 16. Bf2 {[%emt 0:00:39]} Nc4+ {[%emt 0:01:25]} 17. Ka1 {[%emt 0:01:54]} Ke7 {[%emt 0:11:49]} 18. g3 {[%emt 0:05:09]} (18. e3 $17 {was called for.}) 18... Rc6 {[%emt 0:04:36]} 19. f4 {[%emt 0:02:24]} Bf5 $17 {[%emt 0:04:38]} 0-1

[Event "GER-ch Women 2020"]
[Site "Magdeburg"]
[Date "2020.08.20"]
[Round "7.1"]
[White "Burchardt, Brigitte"]
[Black "Osmanodja, Filiz"]
[Result "1/2-1/2"]
[ECO "C24"]
[WhiteElo "2091"]
[BlackElo "2293"]
[Annotator "ChessBase"]
[PlyCount "66"]
[EventDate "2020.08.16"]
[EventType "swiss"]
[EventCountry "GER"]
[SourceTitle "playchess.com"]
[Source "ChessBase"]
[SourceQuality "1"]
[TimeControl "40/5400+30:1800+30"]

1. e4 {[%emt 0:00:00]} e5 {[%emt 0:00:00]} 2. Bc4 {[%emt 0:00:36]} Nf6 {[%emt 0:00:00]} 3. d3 {[%emt 0:00:06]} c6 {[%emt 0:00:16]} 4. Qe2 {[%emt 0:00:50]} Be7 {[%emt 0:00:55]} 5. Nf3 {[%emt 0:01:24]} O-O {[%emt 0:01:12]} 6. O-O {[%emt 0:01:56]} d5 {[%emt 0:09:17]} 7. Bb3 {[%emt 0:01:37]} Bg4 {[%emt 0:03:00]} 8. Nbd2 {[%emt 0:02:58]} Nbd7 {[%emt 0:13:08]} 9. Re1 {[%emt 0:02:43]} Nh5 {[%emt 0:05:38]} 10. Nf1 {[%emt 0:04:17]} dxe4 {[%emt 0:08:11]} 11. dxe4 {[%emt 0:03:32]} Nf4 {[%emt 0:00:47]} 12. Qd1 {[%emt 0:06:08]} Qc7 {[%emt 0:09:39]} 13. h3 {[%emt 0:04:36]} Be6 {[%emt 0:04:40]} 14. Ng3 {[%emt 0:08:08]} Rad8 {[%emt 0:01:31]} 15. Be3 {[%emt 0:03:29]} c5 {[%emt 0:11:01]} 16. Bxe6 {[%emt 0:07:55]} fxe6 {[%emt 0:00:02]} 17. Bxf4 {[%emt 0:04:13]} exf4 {[%emt 0:01:39]} 18. Nf1 {[%emt 0:00:20]} Bf6 {[%emt 0:03:41]} 19. c3 {[%emt 0:01:24]} Ne5 {[%emt 0:07:03]} 20. Qe2 {[%emt 0:00:07]} Nd3 {[%emt 0:03:33]} 21. Red1 {[%emt 0:02:16]} c4 {[%emt 0:00:01]} 22. Rab1 {[%emt 0:01:11]} Be7 {[%emt 0:03:06]} 23. N1d2 {[%emt 0:03:24]} Bc5 {[%emt 0:00:57]} 24. Rf1 {[%emt 0:00:22]} b5 {[%emt 0:00:31]} 25. b3 {[%emt 0:01:20]} Bb6 {[%emt 0:02:10]} 26. bxc4 {[%emt 0:10:48]} bxc4 {[%emt 0:00:01]} 27. e5 {[%emt 0:00:18]} Rf5 {[%emt 0:02:32]} 28. Qe4 {[%emt 0:03:31]} Rc8 {[%emt 0:01:23]} 29. Rb5 {[%emt 0:01:54]} a6 {[%emt 0:04:16]} 30. Rbb1 {[%emt 0:04:15]} Qa7 {[%emt 0:01:38]} 31. Qe2 {[%emt 0:03:21]} Qc7 {[%emt 0:01:21]} 32. Qe4 {[%emt 0:00:06]} Qa7 {[%emt 0:00:07]} 33. Qe2 {[%emt 0:00:05]} Qc7 {[%emt 0:02:29]} 1/2-1/2

[Event "GER-ch Women 2020"]
[Site "Magdeburg"]
[Date "2020.08.20"]
[Round "7.2"]
[White "Voicu-Jagodzinsky, Carmen"]
[Black "Vidonyak, Nellya"]
[Result "1-0"]
[ECO "C41"]
[WhiteElo "2244"]
[BlackElo "2136"]
[Annotator "ChessBase"]
[PlyCount "69"]
[EventDate "2020.08.16"]
[EventType "swiss"]
[EventCountry "GER"]
[SourceTitle "playchess.com"]
[Source "ChessBase"]
[SourceQuality "1"]
[TimeControl "40/5400+30:1800+30"]

1. e4 {[%emt 0:00:00]} d6 {[%emt 0:00:00]} 2. d4 {[%emt 0:00:00]} Nf6 {[%emt 0:00:00]} 3. Nc3 {[%emt 0:00:00]} e5 {[%emt 0:00:00]} 4. Nf3 {[%emt 0:00:08]} Nbd7 {[%emt 0:00:06]} 5. Bc4 {[%emt 0:00:23]} Be7 {[%emt 0:00:17]} 6. O-O {[%emt 0:00:08]} O-O {[%emt 0:00:07]} 7. Re1 {[%emt 0:00:20]} c6 {[%emt 0:00:10]} 8. a4 {[%emt 0:00:07]} Qc7 {[%emt 0:03:22]} 9. h3 {[%emt 0:00:32]} b6 {[%emt 0:00:39]} 10. Ba2 {[%emt 0:00:29]} Bb7 {[%emt 0:00:54]} 11. Nh4 {[%emt 0:01:08]} g6 {[%emt 0:08:16]} 12. Bh6 {[%emt 0:00:55]} Rfe8 {[%emt 0:00:09]} 13. Nf3 {[%emt 0:00:34]} Bf8 {[%emt 0:03:14]} 14. Bxf8 {[%emt 0:02:51]} Nxf8 {[%emt 0:01:02]} 15. Qd2 {[%emt 0:15:52]} Kg7 {[%emt 0:01:04]} 16. Rad1 {[%emt 0:01:53]} Rad8 {[%emt 0:05:33]} 17. Re3 {[%emt 0:19:26]} Rd7 {[%emt 0:03:29]} 18. Nh4 {[%emt 0:09:50]} exd4 {[%emt 0:16:52]} 19. Qxd4 {[%emt 0:00:35]} Re5 {[%emt 0:00:19]} 20. f4 {[%emt 0:10:11]} c5 {[%emt 0:04:51]} 21. Qd3 {[%emt 0:01:29]} Re8 {[%emt 0:02:28]} 22. Nb5 {[%emt 0:14:45]} Qb8 {[%emt 0:16:42]} 23. Nc3 {[%emt 0:04:41]} Qd8 {[%emt 0:06:28]} 24. Nf3 {[%emt 0:01:01]} Kg8 {[%emt 0:08:59]} 25. Ng5 {[%emt 0:02:26]} h6 {[%emt 0:03:02]} 26. Nxf7 {[%emt 0:03:52]} Rxf7 {[%emt 0:00:22]} 27. e5 {[%emt 0:00:15]} d5 {[%emt 0:01:54]} 28. exf6 {[%emt 0:00:32]} Rxe3 {[%emt 0:04:30]} 29. Qxe3 {[%emt 0:00:04]} Rd7 {[%emt 0:02:20]} 30. Qe5 {[%emt 0:01:35]} c4 {[%emt 0:00:36]} 31. Nxd5 {[%emt 0:00:58]} Kh7 {[%emt 0:03:12]} 32. Bxc4 {[%emt 0:00:13]} Bxd5 {[%emt 0:00:56]} 33. Rxd5 {[%emt 0:00:32]} Rxd5 {[%emt 0:01:47]} 34. Bxd5 {[%emt 0:00:03]} Nd7 {[%emt 0:00:44]} 35. Qe7+ {[%emt 0:00:15]} 1-0

[Event "GER-ch Women 2020"]
[Site "Magdeburg"]
[Date "2020.08.20"]
[Round "7.4"]
[White "Bashylina, Luisa"]
[Black "Butenandt, Svenja"]
[Result "1-0"]
[ECO "B42"]
[WhiteElo "1975"]
[BlackElo "1879"]
[Annotator "ChessBase"]
[PlyCount "65"]
[EventDate "2020.08.16"]
[EventType "swiss"]
[EventCountry "GER"]
[SourceTitle "playchess.com"]
[Source "ChessBase"]
[SourceQuality "1"]
[TimeControl "40/5400+30:1800+30"]

1. e4 {[%emt 0:00:00]} c5 {[%emt 0:00:00]} 2. Nf3 {[%emt 0:00:00]} e6 {[%emt 0:00:00]} 3. d4 {[%emt 0:00:00]} cxd4 {[%emt 0:00:00]} 4. Nxd4 {[%emt 0:00:00]} a6 {[%emt 0:00:00]} 5. Bd3 {[%emt 0:00:00]} Qc7 {[%emt 0:01:13]} 6. O-O {[%emt 0:00:00]} Nf6 {[%emt 0:00:23]} 7. Qe2 {[%emt 0:00:12]} d6 {[%emt 0:01:12]} 8. c4 {[%emt 0:00:43]} Nbd7 {[%emt 0:01:34]} 9. f4 {[%emt 0:00:24]} Be7 {[%emt 0:01:03]} 10. Nc3 {[%emt 0:00:10]} b6 {[%emt 0:00:41]} 11. Kh1 {[%emt 0:00:20]} Bb7 {[%emt 0:00:51]} 12. Bd2 {[%emt 0:00:16]} O-O {[%emt 0:00:36]} 13. Rae1 {[%emt 0:00:14]} Rfd8 {[%emt 0:02:28]} 14. f5 {[%emt 0:11:32]} e5 {[%emt 0:07:22]} 15. Nf3 {[%emt 0:01:38]} Nc5 {[%emt 0:01:37]} 16. Bb1 {[%emt 0:01:18]} Rac8 {[%emt 0:03:53]} 17. Rg1 {[%emt 0:06:10]} Qb8 {[%emt 0:05:09]} 18. g4 {[%emt 0:01:02]} Bf8 {[%emt 0:02:12]} 19. g5 {[%emt 0:01:38]} Ne8 {[%emt 0:01:54]} 20. b4 {[%emt 0:03:37]} Nd7 {[%emt 0:00:13]} 21. a3 {[%emt 0:00:47]} Nc7 {[%emt 0:03:37]} 22. Ba2 {[%emt 0:02:12]} g6 {[%emt 0:05:51]} 23. Nh4 {[%emt 0:05:37]} Kg7 {[%emt 0:05:30]} 24. Rgf1 {[%emt 0:01:40]} a5 {[%emt 0:06:20]} 25. Qf3 {[%emt 0:01:04]} Kh8 {[%emt 0:05:34]} 26. fxg6 {[%emt 0:01:23]} fxg6 {[%emt 0:00:11]} 27. Qf7 {[%emt 0:00:24]} Bg7 {[%emt 0:01:37]} 28. Rf3 {[%emt 0:01:11]} Nf8 {[%emt 0:01:38]} 29. Rh3 {[%emt 0:01:14]} Rd7 {[%emt 0:01:22]} 30. Nxg6+ {[%emt 0:00:19]} Nxg6 {[%emt 0:00:13]} 31. Qxg6 {[%emt 0:01:27]} Bf8 {[%emt 0:00:13]} 32. Qf6+ {[%emt 0:00:29]} Bg7 {[%emt 0:00:35]} 33. Qf5 {[%emt 0:00:09]} 1-0

[Event "GER-ch Women 2020"]
[Site "Magdeburg"]
[Date "2020.08.20"]
[Round "7.6"]
[White "Bardorz, Jana"]
[Black "Dietrich, Mareike"]
[Result "1/2-1/2"]
[ECO "B93"]
[WhiteElo "2000"]
[BlackElo "1699"]
[Annotator "ChessBase"]
[PlyCount "64"]
[EventDate "2020.08.16"]
[EventType "swiss"]
[EventCountry "GER"]
[SourceTitle "playchess.com"]
[Source "ChessBase"]
[SourceQuality "1"]
[TimeControl "40/5400+30:1800+30"]

1. e4 {[%emt 0:00:00]} c5 {[%emt 0:00:00]} 2. Nf3 {[%emt 0:00:00]} d6 {[%emt 0:00:00]} 3. d4 {[%emt 0:00:00]} cxd4 {[%emt 0:00:00]} 4. Nxd4 {[%emt 0:00:00]} Nf6 {[%emt 0:00:00]} 5. Nc3 {[%emt 0:00:00]} a6 {[%emt 0:00:00]} 6. f4 {[%emt 0:00:12]} Qc7 {[%emt 0:00:27]} 7. f5 {[%emt 0:04:43]} b5 {[%emt 0:04:53]} 8. a3 {[%emt 0:06:17]} Bb7 {[%emt 0:00:28]} 9. Bd3 {[%emt 0:00:14]} Nbd7 {[%emt 0:01:41]} 10. O-O {[%emt 0:03:18]} g6 {[%emt 0:05:11]} 11. Qe1 {[%emt 0:06:13]} Bg7 {[%emt 0:01:57]} 12. Nf3 {[%emt 0:09:11]} O-O {[%emt 0:14:13]} 13. Qh4 {[%emt 0:06:21]} Qc5+ {[%emt 0:07:50]} 14. Kh1 {[%emt 0:00:41]} d5 {[%emt 0:00:45]} 15. e5 {[%emt 0:07:24]} Nxe5 {[%emt 0:03:35]} 16. Nxe5 {[%emt 0:06:03]} d4 {[%emt 0:00:11]} 17. Nxg6 {[%emt 0:04:52]} fxg6 {[%emt 0:02:54]} 18. Ne2 {[%emt 0:05:56]} Qc6 {[%emt 0:03:23]} 19. Nf4 {[%emt 0:02:11]} Nh5 {[%emt 0:05:24]} 20. Rf2 {[%emt 0:01:20]} Nxf4 {[%emt 0:04:06]} 21. Bxf4 {[%emt 0:00:41]} gxf5 {[%emt 0:08:18]} 22. Qg3 {[%emt 0:02:19]} Qg6 {[%emt 0:01:48]} 23. Re1 {[%emt 0:02:38]} Rae8 {[%emt 0:01:26]} 24. Qxg6 {[%emt 0:03:12]} hxg6 {[%emt 0:01:10]} 25. Rfe2 {[%emt 0:00:23]} Bf6 {[%emt 0:02:42]} 26. a4 {[%emt 0:01:34]} bxa4 {[%emt 0:02:32]} 27. Bh6 {[%emt 0:02:53]} Bg7 {[%emt 0:02:51]} 28. Bc4+ {[%emt 0:00:31]} e6 {[%emt 0:08:08]} 29. Rxe6 {[%emt 0:05:42]} Rxe6 {[%emt 0:02:20]} 30. Rxe6 {[%emt 0:00:08]} Bxh6 {[%emt 0:02:02]} 31. Re7+ {[%emt 0:00:23]} Kh8 {[%emt 0:00:12]} 32. Rxb7 {[%emt 0:00:04]} Re8 {[%emt 0:03:47]} 1/2-1/2